[Event "WYCC 2018 G14"]
[Site "Halkidiki"]
[Date "2018.10.28"]
[Round "9"]
[White "Kamalidenova, Meruert"]
[Black "Wen, Yili"]
[Result "1-0"]
[ECO "E06"]
[WhiteElo "1999"]
[BlackElo "2083"]
[Annotator "NA"]
[PlyCount "103"]
[EventDate "2018.10.20"]
[EventType "swiss"]
[EventCountry "GRE"]
[SourceTitle "playchess.com"]
[Source "ChessBase"]
[SourceQuality "1"]
[TimeControl "40/5400+30:1800+30"]

1. d4 {[%emt 0:00:00]} Nf6 {[%emt 0:00:00]} 2. c4 {[%emt 0:00:00]} e6 {[%emt 0:00:00]} 3. g3 {[%emt 0:00:00]} d5 {[%emt 0:00:00]} 4. Bg2 {[%emt 0:00:00]} Be7 {[%emt 0:00:00]} 5. Nf3 {[%emt 0:00:01]} O-O {[%emt 0:00:00]} 6. O-O {[%emt 0:00:07]} dxc4 {[%emt 0:00:04]} 7. Qc2 {[%emt 0:00:12]} a6 {[%emt 0:00:06]} 8. a4 {[%emt 0:01:19]} Bd7 {[%emt 0:00:06]} 9. Rd1 {[%emt 0:02:10]} Bc6 {[%emt 0:00:42]} 10. Nc3 {[%emt 0:00:53]} Bxf3 {[%emt 0:00:42]} 11. Bxf3 {[%emt 0:00:47]} Nc6 {[%emt 0:00:04]} 12. Bxc6 {[%emt 0:01:28]} bxc6 {[%emt 0:00:03]} 13. e4 {[%emt 0:03:48]} a5 {[%emt 0:10:16]} 14. Qe2 {[%emt 0:02:02]} Qd7 {[%emt 0:10:20]} 15. Qxc4 {[%emt 0:01:39]} Rfb8 {[%emt 0:01:36]} 16. Qe2 {[%emt 0:01:56]} Rb4 {[%emt 0:03:29]} 17. Be3 {[%emt 0:02:07]} Rab8 18. Rd2 {[%emt 0:01:27]} Qc8 {[%emt 0:02:58]} 19. Rc1 {[%emt 0:02:28]} Qb7 {[%emt 0:03:23]} 20. Rcc2 {[%emt 0:01:02]} Bf8 {[%emt 0:00:30]} 21. Bf4 {[%emt 0:03:34]} Rd8 {[%emt 0:15:08]} 22. Qd1 {[%emt 0:05:17]} Nd7 {[%emt 0:01:36]} 23. d5 {[%emt 0:06:15]} cxd5 {[%emt 0:00:52]} 24. exd5 {[%emt 0:00:25]} e5 {[%emt 0:00:16]} 25. Bg5 {[%emt 0:01:20]} f6 {[%emt 0:03:09]} 26. Be3 {[%emt 0:00:52]} Bc5 {[%emt 0:13:23]} 27. Nb5 {[%emt 0:12:53]} Rxa4 {[%emt 0:09:49]} 28. Bxc5 {[%emt 0:06:24]} Qxb5 {[%emt 0:00:25]} 29. Be7 {[%emt 0:01:57]} Re8 {[%emt 0:05:10]} 30. Ba3 {[%emt 0:00:58]} Rd4 {[%emt 0:09:06]} 31. Rxc7 {[%emt 0:05:39]} Qxd5 {[%emt 0:01:06]} 32. Rcc2 {[%emt 0:01:28]} Nf8 {[%emt 0:04:39]} 33. Qh5 {[%emt 0:05:34]} Qf7 {[%emt 0:02:33]} 34. Qxf7+ {[%emt 0:01:47]} Kxf7 {[%emt 0:00:02]} 35. Rc7+ {[%emt 0:00:26]} Ke6 {[%emt 0:03:52]} 36. Rdc2 {[%emt 0:01:01]} Nd7 {[%emt 0:01:22]} 37. Ra7 {[%emt 0:01:30]} Rd5 {[%emt 0:00:54]} 38. f3 {[%emt 0:01:25]} g6 {[%emt 0:00:38]} 39. Kf2 {[%emt 0:03:01]} h5 {[%emt 0:00:06]} 40. Rcc7 {[%emt 0:00:00]} Rd8 {[%emt 0:00:00]} 41. Ra6+ {[%emt 0:06:12]} Kf5 {[%emt 0:03:47]} 42. Rcc6 {[%emt 0:03:21]} Re8 {[%emt 0:01:11]} 43. Rd6 {[%emt 0:02:49]} Rxd6 {[%emt 0:01:21]} 44. Rxd6 {[%emt 0:00:23]} Nb8 {[%emt 0:06:26]} 45. h3 {[%emt 0:06:27]} Rc8 {[%emt 0:01:46]} 46. g4+ {[%emt 0:02:17]} hxg4 {[%emt 0:00:24]} 47. hxg4+ {[%emt 0:00:43]} Kg5 {[%emt 0:00:17]} 48. Kg3 {[%emt 0:01:41]} Rc2 {[%emt 0:00:56]} 49. b4 {[%emt 0:13:54]} Nc6 {[%emt 0:04:54]} 50. b5 {[%emt 0:03:52]} Nd4 {[%emt 0:02:47]} 51. Rxd4 {[%emt 0:01:20]} Rc3 {[%emt 0:09:19]} 52. Rd3 {[%emt 0:00:50]} 1-0

[Event "WYCC 2018 G14"]
[Site "Halkidiki"]
[Date "2018.10.28"]
[Round "9"]
[White "Guillo Longares, Cecilia"]
[Black "Ferguson, Dayna"]
[Result "1/2-1/2"]
[ECO "A50"]
[WhiteElo "1998"]
[BlackElo "1434"]
[Annotator "NA"]
[PlyCount "117"]
[EventDate "2018.10.20"]
[EventType "swiss"]
[EventCountry "GRE"]
[SourceTitle "playchess.com"]
[Source "ChessBase"]
[SourceQuality "1"]
[TimeControl "40/5400+30:1800+30"]

1. d4 {[%emt 0:00:00]} Nf6 {[%emt 0:00:00]} 2. c4 {[%emt 0:00:00]} Nc6 {[%emt 0:00:00]} 3. Nc3 {[%emt 0:00:00]} e5 {[%emt 0:00:00]} 4. d5 {[%emt 0:00:00]} Ne7 {[%emt 0:00:00]} 5. h4 {[%emt 0:00:04]} Neg8 {[%emt 0:00:00]} 6. Nf3 {[%emt 0:03:12]} Ng4 {[%emt 0:02:32]} 7. Bg5 {[%emt 0:09:45]} f6 {[%emt 0:06:21]} 8. Bd2 {[%emt 0:00:26]} Bc5 {[%emt 0:00:36]} 9. e3 {[%emt 0:00:24]} d6 {[%emt 0:00:13]} 10. b4 {[%emt 0:11:38]} Bb6 {[%emt 0:01:52]} 11. Qb3 {[%emt 0:04:48]} a6 {[%emt 0:06:13]} 12. a4 {[%emt 0:05:50]} Ne7 {[%emt 0:03:52]} 13. Be2 {[%emt 0:02:14]} f5 {[%emt 0:00:35]} 14. O-O {[%emt 0:03:22]} h6 {[%emt 0:03:23]} 15. Ne1 {[%emt 0:05:17]} Nf6 {[%emt 0:05:25]} 16. a5 {[%emt 0:10:00]} Ba7 {[%emt 0:00:22]} 17. b5 {[%emt 0:00:20]} O-O {[%emt 0:03:42]} 18. Nd3 {[%emt 0:06:52]} Kh8 {[%emt 0:01:38]} 19. Rfb1 {[%emt 0:01:10]} Ne4 {[%emt 0:19:27]} 20. Be1 {[%emt 0:02:10]} Ng6 {[%emt 0:08:27]} 21. h5 {[%emt 0:02:35]} Nh4 {[%emt 0:04:50]} 22. b6 {[%emt 0:01:41]} Bb8 {[%emt 0:01:10]} 23. g3 {[%emt 0:03:05]} g5 {[%emt 0:07:20]} 24. gxh4 {[%emt 0:05:04]} gxh4 {[%emt 0:00:50]} 25. Bf3 {[%emt 0:04:30]} Qg5+ {[%emt 0:01:29]} 26. Kf1 {[%emt 0:00:11]} h3 {[%emt 0:04:05]} 27. Ke2 {[%emt 0:01:35]} Nf6 {[%emt 0:03:04]} 28. Bh1 {[%emt 0:04:04]} Qxh5+ {[%emt 0:01:23]} 29. f3 {[%emt 0:00:07]} Rg8 {[%emt 0:03:09]} 30. Bf2 {[%emt 0:01:37]} h2 {[%emt 0:01:22]} 31. Kd2 {[%emt 0:04:50]} Qg6 {[%emt 0:08:08]} 32. Ne2 {[%emt 0:00:44]} Nh5 {[%emt 0:01:07]} 33. Qc3 {[%emt 0:02:05]} Kh7 {[%emt 0:00:32]} 34. Rf1 {[%emt 0:01:13]} Qf7 {[%emt 0:00:28]} 35. f4 {[%emt 0:01:37]} e4 {[%emt 0:00:22]} 36. Nb2 {[%emt 0:00:51]} c6 {[%emt 0:00:17]} 37. Qd4 {[%emt 0:00:32]} cxd5 {[%emt 0:00:27]} 38. cxd5 {[%emt 0:00:08]} Nf6 {[%emt 0:00:53]} 39. Nc3 {[%emt 0:00:23]} Bd7 {[%emt 0:01:06]} 40. Bh4 {[%emt 0:00:00]} Ng4 {[%emt 0:00:00]} 41. Rae1 {[%emt 0:05:10]} Rc8 {[%emt 0:01:15]} 42. Rc1 {[%emt 0:02:51]} Rc5 {[%emt 0:03:04]} 43. Nba4 {[%emt 0:04:17]} Rxa5 {[%emt 0:11:43]} 44. Qb4 {[%emt 0:01:23]} Rxd5+ {[%emt 0:00:22]} 45. Nxd5 {[%emt 0:00:10]} Qxd5+ {[%emt 0:00:05]} 46. Ke1 {[%emt 0:06:07]} Nxe3 {[%emt 0:01:05]} 47. Rf2 {[%emt 0:00:20]} Ng4 {[%emt 0:00:14]} 48. Rd2 {[%emt 0:01:26]} Qe6 {[%emt 0:01:26]} 49. Nc3 {[%emt 0:01:59]} Bc6 {[%emt 0:00:40]} 50. Rdd1 {[%emt 0:01:49]} d5 {[%emt 0:01:19]} 51. Ne2 {[%emt 0:00:35]} Bd6 {[%emt 0:00:07]} 52. Qb3 {[%emt 0:00:56]} Qd7 {[%emt 0:01:21]} 53. Rd4 {[%emt 0:01:26]} Bf8 {[%emt 0:04:34]} 54. Qh3 {[%emt 0:05:48]} Bg7 {[%emt 0:01:20]} 55. Rd2 {[%emt 0:00:05]} Qd6 {[%emt 0:00:56]} 56. Qb3 {[%emt 0:01:30]} a5 {[%emt 0:01:46]} 57. Bg3 {[%emt 0:00:31]} a4 {[%emt 0:00:36]} 58. Qa2 {[%emt 0:00:18]} Qb4 {[%emt 0:02:26]} 59. Rb1 {[%emt 0:01:31]} 1/2-1/2

[Event "WYCC 2018 G14"]
[Site "Halkidiki"]
[Date "2018.10.28"]
[Round "9"]
[White "Mrudul Dehankar"]
[Black "Baiburina, Kamilla"]
[Result "1-0"]
[ECO "C26"]
[WhiteElo "1996"]
[BlackElo "1907"]
[Annotator "NA RC"]
[PlyCount "41"]
[EventDate "2018.10.20"]
[EventType "swiss"]
[EventCountry "GRE"]
[SourceTitle "playchess.com"]
[Source "ChessBase"]
[SourceQuality "1"]
[TimeControl "40/5400+30:1800+30"]

1. e4 {[%emt 0:00:00]} e5 {[%emt 0:00:00]} 2. Nc3 {[%emt 0:00:00]} Nf6 {[%emt 0:02:26]} 3. Bc4 {[%emt 0:00:04]} d6 {[%emt 0:01:11]} 4. Nf3 {[%emt 0:03:37]} Be7 {[%emt 0:01:33]} 5. d4 {[%emt 0:03:20]} Nbd7 {[%emt 0:01:20]} 6. O-O {[%emt 0:00:13]} O-O {[%emt 0:00:10]} 7. Re1 {[%emt 0:02:38]} c6 {[%emt 0:00:13]} 8. a4 {[%emt 0:00:10]} a5 {[%emt 0:00:11]} 9. h3 {[%emt 0:02:08]} Qc7 {[%emt 0:01:34]} 10. Bb3 {[%emt 0:03:29]} Re8 {[%emt 0:06:04]} 11. Ng5 {[%emt 0:13:45]} Rf8 {[%emt 0:02:11]} 12. Be3 {[%emt 0:01:32]} Nb6 {[%emt 0:13:15]} 13. Qe2 {[%emt 0:10:41]} h6 {[%emt 0:06:02]} 14. Nf3 {[%emt 0:00:38]} Nfd7 {[%emt 0:01:59]} 15. Rad1 {[%emt 0:01:43]} Bf6 {[%emt 0:03:50]} 16. dxe5 {[%emt 0:07:04]} dxe5 {[%emt 0:01:01]} 17. Nh2 {[%emt 0:10:37]} Be7 {[%emt 0:07:04]} 18. Qh5 {[%emt 0:07:01]} Nc5 {[%emt 0:06:38]} 19. Bxh6 {[%emt 0:07:02]} Nxb3 {[%emt 0:03:46]} 20. Bxg7 {[%emt 0:01:19]} Kxg7 {[%emt 0:00:54]} 21. Re3 {[%emt 0:02:22]} 1-0

[Event "WYCC 2018 G14"]
[Site "Halkidiki"]
[Date "2018.10.28"]
[Round "9"]
[White "Matus, Nastassja"]
[Black "Behzad Nazif, Parva"]
[Result "*"]
[ECO "E72"]
[WhiteElo "1983"]
[BlackElo "1859"]
[Annotator "NA RC"]
[PlyCount "186"]
[EventDate "2018.10.20"]
[EventType "swiss"]
[EventCountry "GRE"]
[SourceTitle "playchess.com"]
[Source "ChessBase"]
[SourceQuality "1"]
[TimeControl "40/5400+30:1800+30"]

1. d4 {[%emt 0:00:00]} Nf6 {[%emt 0:00:00]} 2. c4 {[%emt 0:00:00]} g6 {[%emt 0:00:00]} 3. g3 {[%emt 0:00:00]} Bg7 {[%emt 0:00:00]} 4. Bg2 {[%emt 0:00:00]} d6 {[%emt 0:00:02]} 5. Nc3 {[%emt 0:00:07]} O-O {[%emt 0:00:07]} 6. e4 {[%emt 0:00:13]} e5 {[%emt 0:03:24]} 7. Nge2 {[%emt 0:01:32]} Nc6 {[%emt 0:01:22]} 8. d5 {[%emt 0:00:46]} Ne7 {[%emt 0:00:21]} 9. O-O {[%emt 0:01:14]} Nd7 {[%emt 0:02:50]} 10. Be3 {[%emt 0:03:37]} f5 {[%emt 0:01:37]} 11. f4 {[%emt 0:14:47]} exf4 {[%emt 0:02:41]} 12. Nxf4 {[%emt 0:10:57]} Ne5 {[%emt 0:02:35]} 13. Qe2 {[%emt 0:06:29]} fxe4 {[%emt 0:11:01]} 14. Nxe4 {[%emt 0:03:51]} Nf5 {[%emt 0:00:54]} 15. Bf2 {[%emt 0:07:38]} Nh6 {[%emt 0:04:47]} 16. h3 {[%emt 0:06:05]} Qe7 {[%emt 0:07:58]} 17. Rac1 {[%emt 0:08:15]} Bf5 {[%emt 0:04:24]} 18. b3 {[%emt 0:10:00]} Rae8 {[%emt 0:03:26]} 19. Rce1 {[%emt 0:02:17]} Nhf7 {[%emt 0:05:59]} 20. Qd1 {[%emt 0:07:18]} Qd7 {[%emt 0:05:29]} 21. Kh2 {[%emt 0:01:51]} Qd8 {[%emt 0:05:51]} 22. Bg1 {[%emt 0:03:38]} Ng5 {[%emt 0:02:45]} 23. Nxg5 {[%emt 0:01:06]} Qxg5 {[%emt 0:00:06]} 24. Be3 {[%emt 0:01:30]} Qd8 {[%emt 0:01:40]} 25. Ne6 {[%emt 0:06:10]} Bxe6 {[%emt 0:00:22]} 26. dxe6 {[%emt 0:00:17]} c6 {[%emt 0:00:46]} 27. Rxf8+ {[%emt 0:02:13]} Bxf8 {[%emt 0:00:47]} 28. Bf4 {[%emt 0:00:35]} Qf6 {[%emt 0:03:59]} 29. c5 {[%emt 0:01:18]} Rxe6 {[%emt 0:01:50]} 30. cxd6 {[%emt 0:00:06]} Bxd6 {[%emt 0:00:10]} 31. Rf1 {[%emt 0:00:44]} Qe7 {[%emt 0:00:55]} 32. h4 {[%emt 0:00:22]} Nf7 {[%emt 0:02:11]} 33. Bxd6 {[%emt 0:00:10]} Rxd6 {[%emt 0:00:45]} 34. Qc2 {[%emt 0:00:25]} Rf6 {[%emt 0:01:57]} 35. Rd1 {[%emt 0:00:25]} Ne5 {[%emt 0:01:09]} 36. Kh1 {[%emt 0:00:32]} Kg7 {[%emt 0:03:03]} 37. Re1 {[%emt 0:00:49]} Qd6 {[%emt 0:01:41]} 38. Rd1 {[%emt 0:00:28]} Qc7 {[%emt 0:03:27]} 39. Qe4 {[%emt 0:00:59]} Nf7 {[%emt 0:01:26]} 40. Kh2 {[%emt 0:00:00]} b6 {[%emt 0:00:00]} 41. Qd4 {[%emt 0:10:11]} Qe5 {[%emt 0:17:44]} 42. Qd7 {[%emt 0:04:24]} a5 {[%emt 0:01:46]} 43. Qb7 {[%emt 0:03:12]} g5 {[%emt 0:05:52]} 44. hxg5 {[%emt 0:02:48]} Qxg5 {[%emt 0:00:15]} 45. Qd7 {[%emt 0:06:04]} Qh6+ {[%emt 0:09:21]} 46. Bh3 {[%emt 0:02:10]} Qh5 {[%emt 0:06:31]} 47. Rd2 {[%emt 0:03:06]} Qe5 {[%emt 0:05:03]} 48. Qg4+ {[%emt 0:01:46]} Rg6 {[%emt 0:00:32]} 49. Qf3 {[%emt 0:00:32]} Qf6 {[%emt 0:01:41]} 50. Qe3 {[%emt 0:00:45]} Qg5 {[%emt 0:01:08]} 51. Qc3+ {[%emt 0:01:01]} Kh6 {[%emt 0:00:42]} 52. Rd4 {[%emt 0:00:27]} Qe5 {[%emt 0:00:39]} 53. Qd2+ {[%emt 0:00:39]} Kg7 {[%emt 0:00:05]} 54. Qd3 {[%emt 0:00:23]} c5 {[%emt 0:00:55]} 55. Re4 {[%emt 0:00:17]} Qf6 {[%emt 0:00:32]} 56. Re2 {[%emt 0:00:31]} Ne5 {[%emt 0:00:17]} 57. Qd5 {[%emt 0:00:43]} Nf3+ {[%emt 0:00:52]} 58. Kg2 {[%emt 0:00:15]} Nd4 {[%emt 0:00:34]} 59. Rf2 {[%emt 0:00:33]} Qe7 {[%emt 0:00:15]} 60. Qh5 {[%emt 0:00:51]} Qc7 {[%emt 0:00:38]} 61. Qh4 {[%emt 0:00:17]} Qb7+ {[%emt 0:00:13]} 62. Kh2 {[%emt 0:00:34]} Nf3+ {[%emt 0:00:05]} 63. Rxf3 {[%emt 0:00:08]} Qxf3 {[%emt 0:00:04]} 64. Qe7+ {[%emt 0:00:09]} Kh6 {[%emt 0:00:22]} 65. Qh4+ {[%emt 0:00:06]} Kg7 {[%emt 0:00:48]} 66. Qe7+ {[%emt 0:00:02]} Qf7 {[%emt 0:00:23]} 67. Qe5+ {[%emt 0:00:08]} Rf6 {[%emt 0:00:15]} 68. Qg5+ {[%emt 0:00:24]} Kf8 {[%emt 0:00:05]} 69. Qe5 {[%emt 0:01:38]} Qe7 {[%emt 0:00:25]} 70. Qh5 {[%emt 0:00:50]} Qe4 {[%emt 0:02:01]} 71. Bg2 {[%emt 0:00:58]} Qg6 {[%emt 0:00:31]} 72. Qe2 {[%emt 0:00:12]} Qg5 {[%emt 0:00:45]} 73. Qd3 {[%emt 0:00:46]} Qh5+ {[%emt 0:00:31]} 74. Bh3 {[%emt 0:00:42]} Kg7 {[%emt 0:00:31]} 75. Qd7+ {[%emt 0:00:18]} Qf7 {[%emt 0:00:15]} 76. Qg4+ {[%emt 0:00:13]} Rg6 {[%emt 0:00:07]} 77. Qe2 {[%emt 0:00:19]} Qc7 {[%emt 0:00:14]} 78. Qe3 {[%emt 0:00:18]} Qf7 {[%emt 0:00:47]} 79. Qe2 {[%emt 0:00:23]} Qf6 {[%emt 0:00:25]} 80. Qd2 {[%emt 0:00:32]} Qd4 {[%emt 0:00:29]} 81. Qe2 {[%emt 0:00:20]} Qd6 {[%emt 0:00:56]} 82. Qe3 {[%emt 0:00:23]} h6 {[%emt 0:00:34]} 83. Qc3+ {[%emt 0:01:16]} Qd4 {[%emt 0:00:14]} 84. Qe1 {[%emt 0:00:52]} Qb2+ {[%emt 0:00:55]} 85. Bg2 {[%emt 0:00:21]} Qf6 {[%emt 0:00:19]} 86. Qd2 {[%emt 0:00:24]} Qd6 {[%emt 0:00:47]} 87. Qc3+ {[%emt 0:00:16]} Rf6 {[%emt 0:00:15]} 88. Qe3 {[%emt 0:00:48]} Qe6 {[%emt 0:00:27]} 89. Qd2 {[%emt 0:00:36]} Qf7 {[%emt 0:00:39]} 90. Qe2 {[%emt 0:00:37]} Rf5 {[%emt 0:00:33]} 91. Qb2+ {[%emt 0:00:41]} Qf6 {[%emt 0:00:09]} 92. Qe2 {[%emt 0:00:35]} Qe5 {[%emt 0:00:37]} 93. Qg4+ {[%emt 0:00:25]} Kf8 {[%emt 0:00:54]} *

[Event "WYCC 2018 G14"]
[Site "Halkidiki"]
[Date "2018.10.28"]
[Round "9"]
[White "Ziegenfuss, Antonia"]
[Black "Zeng, Sheena"]
[Result "1/2-1/2"]
[ECO "E04"]
[WhiteElo "1969"]
[BlackElo "1807"]
[Annotator "NA RC"]
[PlyCount "75"]
[EventDate "2018.10.20"]
[EventType "swiss"]
[EventCountry "GRE"]
[SourceTitle "playchess.com"]
[Source "ChessBase"]
[SourceQuality "1"]
[TimeControl "40/5400+30:1800+30"]

1. d4 {[%emt 0:00:00]} Nf6 {[%emt 0:00:00]} 2. c4 {[%emt 0:00:00]} e6 {[%emt 0:00:00]} 3. Nf3 {[%emt 0:00:00]} d5 {[%emt 0:00:00]} 4. g3 {[%emt 0:00:00]} dxc4 {[%emt 0:00:57]} 5. Bg2 {[%emt 0:00:09]} a6 {[%emt 0:00:25]} 6. a4 {[%emt 0:03:04]} Nc6 {[%emt 0:01:39]} 7. O-O {[%emt 0:02:25]} Rb8 {[%emt 0:01:39]} 8. Nc3 {[%emt 0:08:17]} b5 {[%emt 0:03:53]} 9. axb5 {[%emt 0:04:47]} axb5 {[%emt 0:00:06]} 10. Bg5 {[%emt 0:13:30]} Be7 {[%emt 0:02:18]} 11. Bxf6 {[%emt 0:13:53]} Bxf6 {[%emt 0:00:29]} 12. Nxb5 {[%emt 0:02:22]} Rxb5 {[%emt 0:08:18]} 13. Qa4 {[%emt 0:00:58]} Rb4 {[%emt 0:06:23]} 14. Qxc6+ {[%emt 0:02:05]} Bd7 {[%emt 0:00:11]} 15. Qc5 {[%emt 0:04:27]} Be7 {[%emt 0:00:55]} 16. Qh5 {[%emt 0:01:44]} O-O {[%emt 0:07:39]} 17. Ne5 {[%emt 0:03:00]} g6 {[%emt 0:10:16]} 18. Qf3 {[%emt 0:04:02]} f6 {[%emt 0:09:01]} 19. Nc6 {[%emt 0:12:15]} Bxc6 {[%emt 0:00:13]} 20. Qxc6 {[%emt 0:00:04]} Qd6 {[%emt 0:01:23]} 21. Ra6 {[%emt 0:03:37]} Qxc6 {[%emt 0:02:06]} 22. Rxc6 {[%emt 0:00:07]} Bd6 {[%emt 0:00:16]} 23. e3 {[%emt 0:01:45]} Rxb2 {[%emt 0:00:28]} 24. Rxc4 {[%emt 0:00:49]} Rfb8 {[%emt 0:00:42]} 25. Rfc1 {[%emt 0:01:24]} Rb1 {[%emt 0:00:45]} 26. Bf1 {[%emt 0:01:58]} Rxc1 {[%emt 0:00:44]} 27. Rxc1 {[%emt 0:00:05]} Kf7 {[%emt 0:00:35]} 28. Bd3 {[%emt 0:01:25]} f5 {[%emt 0:00:54]} 29. Kg2 {[%emt 0:01:07]} Kf6 {[%emt 0:01:37]} 30. h4 {[%emt 0:05:22]} h6 {[%emt 0:01:36]} 31. Rb1 {[%emt 0:05:12]} Rxb1 {[%emt 0:00:06]} 32. Bxb1 {[%emt 0:00:03]} c5 {[%emt 0:00:24]} 33. dxc5 {[%emt 0:00:39]} Bxc5 {[%emt 0:00:05]} 34. e4 {[%emt 0:01:08]} fxe4 {[%emt 0:00:10]} 35. Bxe4 {[%emt 0:00:05]} g5 {[%emt 0:00:06]} 36. f4 {[%emt 0:01:02]} gxf4 {[%emt 0:00:11]} 37. gxf4 {[%emt 0:00:07]} e5 {[%emt 0:00:44]} 38. f5 {[%emt 0:00:57]} 1/2-1/2

[Event "WYCC 2018 G14"]
[Site "Halkidiki"]
[Date "2018.10.28"]
[Round "9"]
[White "Randrianarimanana, Alicia"]
[Black "Tien, Sophie"]
[Result "1-0"]
[ECO "C54"]
[WhiteElo "1947"]
[BlackElo "1648"]
[Annotator "NA"]
[PlyCount "131"]
[EventDate "2018.10.20"]
[EventType "swiss"]
[EventCountry "GRE"]
[SourceTitle "playchess.com"]
[Source "ChessBase"]
[SourceQuality "1"]
[TimeControl "40/5400+30:1800+30"]

1. e4 e5 2. Nf3 Nc6 3. Bc4 Bc5 4. c3 Nf6 5. d4 exd4 6. e5 d5 7. Bb5 Ne4 8. cxd4 Bb6 9. Nc3 O-O 10. Be3 f5 11. g3 Be6 12. Bxc6 bxc6 13. Na4 Qe7 14. Qc2 Qb4+ 15. Nc3 Ba5 16. a3 Qc4 17. Nd2 Bxc3 18. bxc3 Nxd2 19. Qxd2 Rab8 20. f4 Rb3 21. Kf2 Rfb8 22. Rhc1 Rb2 23. Rc2 Rxc2 24. Qxc2 Rb3 25. Qe2 Rxc3 26. Qxc4 Rxc4 27. Rc1 Kf7 28. Ke2 Ke7 29. Kd3 Ra4 30. Rc3 Ra6 31. Rb3 Rb6 32. Kc2 Kd7 33. Bd2 Ra6 34. Bb4 Kc8 35. Rf3 Kb8 36. Rf1 g6 37. Kd3 Rb6 38. Rc1 Kb7 39. Rc2 Rb5 40. Ke2 Bd7 41. Kf2 Rb6 42. Kg2 Ka6 43. Kh3 Kb5 44. Kh4 Rb8 45. Kg5 Be6 46. Kf6 Re8 47. Kg7 Bg8 48. h3 a5 49. Rc5+ Kb6 50. Bxa5+ Kb7 51. g4 fxg4 52. hxg4 Be6 53. Kxh7 Bxg4 54. Kxg6 Rf8 55. Bd2 Be6 56. Rc1 Kb6 57. Rf1 Bf5+ 58. Kg7 Re8 59. Kf7 Re6 60. Bb4 Kb7 61. Rg1 Rh6 62. Rg5 Rh7+ 63. Kf6 Bd7 64. f5 Kc8 65. Rg8+ Kb7 66. e6 1-0

[Event "WYCC 2018 G14"]
[Site "Halkidiki"]
[Date "2018.10.28"]
[Round "9"]
[White "Lehaci, Miruna-Daria"]
[Black "Mehmed, Elif"]
[Result "1-0"]
[ECO "B90"]
[WhiteElo "1933"]
[BlackElo "2049"]
[Annotator "NA RC"]
[PlyCount "63"]
[EventDate "2018.10.20"]
[EventType "swiss"]
[EventCountry "GRE"]
[SourceTitle "playchess.com"]
[Source "ChessBase"]
[SourceQuality "1"]
[TimeControl "40/5400+30:1800+30"]

1. e4 c5 2. Nf3 d6 3. d4 cxd4 4. Nxd4 Nf6 5. Nc3 a6 6. Be3 e6 7. g4 b5 8. g5 Nfd7 9. a3 Bb7 10. h4 Nb6 11. h5 N8d7 12. g6 hxg6 13. hxg6 Rxh1 14. gxf7+ Kxf7 15. Qf3+ Qf6 16. Qxh1 Nc5 17. Bh3 Nba4 18. Nxa4 bxa4 19. f3 d5 20. O-O-O dxe4 21. fxe4 Bxe4 22. Qh2 Kg8 23. Rf1 Qg6 24. Qc7 Qe8 25. Qe5 Rc8 26. Kb1 Bd5 27. Bg4 Qg6 28. Bh5 Qe4 29. Bf7+ Kh8 30. Qg5 Bd6 31. Bg6 Be7 32. Qh5+ 1-0

[Event "WYCC 2018 G14"]
[Site "Halkidiki"]
[Date "2018.10.28"]
[Round "9"]
[White "Zhu, Evelyn"]
[Black "Dhyana Patel"]
[Result "1-0"]
[ECO "D85"]
[WhiteElo "1926"]
[BlackElo "2002"]
[Annotator "NA"]
[PlyCount "73"]
[EventDate "2018.10.20"]
[EventType "swiss"]
[EventCountry "GRE"]
[SourceTitle "playchess.com"]
[Source "ChessBase"]
[SourceQuality "1"]
[TimeControl "40/5400+30:1800+30"]

1. d4 {[%emt 0:00:00]} Nf6 {[%emt 0:00:00]} 2. c4 {[%emt 0:00:00]} g6 {[%emt 0:00:21]} 3. Nc3 {[%emt 0:00:00]} d5 {[%emt 0:00:41]} 4. cxd5 {[%emt 0:00:00]} Nxd5 {[%emt 0:00:33]} 5. g3 {[%emt 0:00:00]} Bg7 {[%emt 0:02:18]} 6. Bg2 {[%emt 0:00:00]} Nxc3 {[%emt 0:01:52]} 7. bxc3 {[%emt 0:00:03]} O-O {[%emt 0:01:24]} 8. e3 {[%emt 0:01:27]} c5 {[%emt 0:01:40]} 9. Ne2 {[%emt 0:00:34]} Nc6 {[%emt 0:01:31]} 10. O-O {[%emt 0:00:53]} Qc7 {[%emt 0:04:29]} 11. a4 {[%emt 0:04:53]} Rd8 {[%emt 0:05:42]} 12. Ba3 {[%emt 0:03:52]} b6 {[%emt 0:02:20]} 13. Qc2 {[%emt 0:05:05]} Bb7 {[%emt 0:06:44]} 14. Rfd1 {[%emt 0:16:25]} cxd4 {[%emt 0:02:08]} 15. cxd4 {[%emt 0:02:22]} Rac8 {[%emt 0:00:21]} 16. Rac1 {[%emt 0:05:39]} Qd7 {[%emt 0:02:31]} 17. Qb1 {[%emt 0:07:13]} Na5 {[%emt 0:09:05]} 18. Bxb7 {[%emt 0:04:37]} Qxb7 {[%emt 0:02:46]} 19. Qd3 {[%emt 0:05:04]} Rxc1 {[%emt 0:01:27]} 20. Rxc1 {[%emt 0:01:49]} e5 {[%emt 0:00:32]} 21. Bb2 {[%emt 0:08:52]} exd4 {[%emt 0:00:37]} 22. Nxd4 {[%emt 0:02:43]} Bxd4 {[%emt 0:02:45]} 23. Bxd4 {[%emt 0:01:39]} Qd5 {[%emt 0:04:37]} 24. Qc3 {[%emt 0:09:18]} Qd7 {[%emt 0:20:29]} 25. Bf6 {[%emt 0:10:56]} Re8 {[%emt 0:01:23]} 26. Qb4 {[%emt 0:01:49]} Nb7 {[%emt 0:02:23]} 27. Qf4 {[%emt 0:02:08]} Qe6 {[%emt 0:12:50]} 28. Bb2 {[%emt 0:02:29]} Nc5 {[%emt 0:02:51]} 29. Rd1 {[%emt 0:00:31]} Ne4 {[%emt 0:01:40]} 30. Rd4 {[%emt 0:01:37]} Qa2 {[%emt 0:00:57]} 31. Qxe4 {[%emt 0:00:45]} Rc8 {[%emt 0:01:26]} 32. Rd2 {[%emt 0:00:58]} Qe6 {[%emt 0:00:39]} 33. Qd4 {[%emt 0:00:57]} f6 {[%emt 0:00:13]} 34. Qxf6 {[%emt 0:01:15]} Rc1+ {[%emt 0:00:20]} 35. Kg2 {[%emt 0:00:01]} Qxf6 {[%emt 0:00:10]} 36. Bxf6 {[%emt 0:00:01]} Kf7 {[%emt 0:00:13]} 37. Be5 {[%emt 0:00:56]} 1-0

[Event "WYCC 2018 G14"]
[Site "Halkidiki"]
[Date "2018.10.28"]
[Round "9"]
[White "Rodriguez Redondo, Adhara"]
[Black "Yedigaryan, Asya"]
[Result "1-0"]
[ECO "B10"]
[WhiteElo "1911"]
[BlackElo "1726"]
[Annotator "NA"]
[PlyCount "69"]
[EventDate "2018.10.20"]
[EventType "swiss"]
[EventCountry "GRE"]
[SourceTitle "playchess.com"]
[Source "ChessBase"]
[SourceQuality "1"]
[TimeControl "40/5400+30:1800+30"]

1. e4 {[%emt 0:00:00]} c6 {[%emt 0:00:00]} 2. Nf3 {[%emt 0:00:00]} d5 {[%emt 0:00:00]} 3. exd5 {[%emt 0:00:00]} cxd5 {[%emt 0:00:00]} 4. Ne5 {[%emt 0:00:00]} Nf6 {[%emt 0:00:00]} 5. d4 {[%emt 0:00:14]} Nc6 {[%emt 0:00:00]} 6. Bb5 {[%emt 0:00:22]} Bd7 {[%emt 0:00:03]} 7. Nxd7 {[%emt 0:01:26]} Qxd7 {[%emt 0:00:08]} 8. c3 {[%emt 0:01:10]} e6 {[%emt 0:00:08]} 9. Nd2 {[%emt 0:00:44]} Bd6 {[%emt 0:05:46]} 10. Nf3 {[%emt 0:01:28]} Qc7 {[%emt 0:02:21]} 11. O-O {[%emt 0:02:03]} O-O {[%emt 0:01:05]} 12. Bd3 {[%emt 0:02:04]} Ne4 {[%emt 0:02:18]} 13. g3 {[%emt 0:08:10]} f5 {[%emt 0:06:40]} 14. Qe2 {[%emt 0:07:20]} Rf6 {[%emt 0:12:04]} 15. Ne1 {[%emt 0:08:16]} f4 {[%emt 0:25:08]} 16. Bxe4 {[%emt 0:15:36]} dxe4 {[%emt 0:00:04]} 17. Qxe4 {[%emt 0:08:16]} Raf8 {[%emt 0:03:54]} 18. f3 {[%emt 0:07:12]} fxg3 {[%emt 0:03:55]} 19. h3 Qf7 {[%emt 0:14:28]} 20. Kg2 {[%emt 0:03:07]} Bf4 21. Nd3 {[%emt 0:02:43]} Bxc1 {[%emt 0:01:09]} 22. Raxc1 {[%emt 0:00:14]} Qh5 {[%emt 0:02:48]} 23. Nc5 {[%emt 0:06:28]} Qh6 {[%emt 0:07:02]} 24. Rce1 {[%emt 0:05:58]} Nd8 {[%emt 0:04:37]} 25. Qe3 {[%emt 0:05:39]} Qh5 {[%emt 0:01:54]} 26. Ne4 {[%emt 0:07:29]} Rf4 {[%emt 0:03:17]} 27. Qd3 {[%emt 0:03:28]} Nf7 {[%emt 0:01:54]} 28. Qc4 Re8 {[%emt 0:00:58]} 29. a4 {[%emt 0:03:39]} a6 {[%emt 0:01:23]} 30. Qc5 {[%emt 0:01:06]} Qg6 {[%emt 0:00:21]} 31. Qc7 Rf5 {[%emt 0:00:32]} 32. Qd7 {[%emt 0:01:10]} Rf8 33. Qxb7 {[%emt 0:00:32]} Nh6 {[%emt 0:01:36]} 34. Qxa6 {[%emt 0:00:30]} Rf4 {[%emt 0:00:46]} 35. Qd6 1-0